bitfinex/quotes_ETHUSD_20250129
["timestamp","ask_amount","ask_price","bid_price","bid_amount"]
[1738147780249,3.18828,3136.5,3136.0,3.73873]
[1738147780612,6.37664,3136.5,3136.0,3.73873]
[1738147782049,3.18828,3136.5,3136.0,4.54195954]
[1738147782944,3.18808,3136.7,3136.0,4.54195954]
[1738147783150,3.18787,3136.9,3136.4,0.55]
[1738147783311,0.60711757,3138.3,3136.4,0.55]
[1738147783312,3.18749,3137.3,3136.7,0.55]
[1738147783512,3.9899,3137.5,3136.9,0.55]
[1738147783708,3.9899,3137.5,3136.9,3.73785]
[1738147783940,3.18745,3137.3,3136.9,0.55]
[1738147784151,3.1876,3137.2,3136.9,0.55]
[1738147784460,3.1876,3137.2,3136.8,0.55]
[1738147784946,3.18761,3137.2,3136.7,0.55]
[1738147785952,6.37499,3137.3,3136.7,3.73798]
[1738147786133,3.18745,3137.3,3136.7,4.513389]
[1738147786447,3.18759,3137.2,3136.7,4.513389]
[1738147787351,3.18745,3137.3,3136.7,4.513389]
[1738147787553,3.18745,3137.3,3136.9,0.55]
[1738147788055,3.18745,3137.3,3136.8,0.55]
[1738147788621,3.18756,3137.2,3136.8,0.55]
[1738147788955,3.18755,3137.2,3136.8,0.55]
[1738147789153,3.18755,3137.2,3136.8,4.2720889]
[1738147789654,3.18755,3137.2,3136.9,0.0773011]
[1738147794225,4.01405,3137.2,3136.9,0.0773011]
[1738147795359,3.18755,3137.2,3136.9,0.0773011]
[1738147797840,3.18755,3137.2,3137.0,0.55]
[1738147798241,3.18755,3137.2,3137.1,0.61966284]
[1738147798880,3.91151301,3137.2,3137.1,0.06966284]
[1738147799176,3.18755,3137.2,3136.7,3.73801]
[1738147799386,3.18755,3137.2,3137.1,0.06966284]
[1738147799679,3.18755,3137.2,3136.7,3.73801]
[1738147799879,3.18755,3137.2,3137.1,0.06966284]
[1738147800055,3.18755,3137.2,3136.7,3.73801]
[1738147800254,3.18755,3137.2,3137.1,0.06966284]
[1738147800469,3.18755,3137.2,3136.7,3.73801]
[1738147800780,3.18755,3137.2,3136.7,4.513417]
[1738147800985,3.18755,3137.2,3136.9,0.55]
[1738147801355,0.8328,3137.4,3137.0,0.06968607]
[1738147801545,3.18765,3137.1,3137.0,0.61968607]
[1738147802479,0.86468011,3137.4,3137.0,0.61968607]
[1738147802786,6.37499,3137.3,3137.0,0.61968607]
[1738147803378,3.18745,3137.3,3137.0,0.61968607]
[1738147803595,3.18756,3137.2,3137.0,0.61968607]
[1738147804782,5.37144578,3137.7,3137.1,1.3516]
[1738147804993,4.54874578,3137.7,3137.3,0.55]
[1738147805366,4.54874578,3137.7,3137.5,0.55]
[1738147805595,6.37423,3137.7,3137.5,0.55]
[1738147805754,3.18711,3137.7,3137.6,0.06960128]
[1738147805953,3.68438882,3137.7,3137.6,0.06960128]
[1738147806696,4.44758882,3137.7,3137.6,0.06960128]
[1738147806993,4.44758882,3137.7,3136.8,0.55]
[1738147807196,3.18747,3137.3,3136.8,3.73794]
[1738147807498,3.18747,3137.3,3137.0,0.55]
[1738147807884,3.18728,3137.5,3137.2,0.55]
[1738147808082,5.31194578,3137.7,3137.2,1.3594]
[1738147808284,3.21910011,3137.6,3137.4,0.55]
[1738147808492,3.18725,3137.5,3137.4,0.55]
[1738147808798,3.18725,3137.5,3137.3,0.55]
[1738147809293,4.54874578,3137.7,3137.3,0.55]
[1738147809496,0.64417715,3137.8,3137.3,4.192075]
[1738147809674,3.1867,3138.1,3137.6,1.3741]
[1738147809870,3.18682,3138.0,3137.6,1.3741]
[1738147810103,3.21870011,3138.0,3137.6,1.3741]
[1738147810400,3.18682,3138.0,3137.6,1.3741]
[1738147810564,3.1867,3138.1,3137.6,1.3741]
[1738147810768,3.1867,3138.1,3137.6,4.56124]
[1738147811185,3.18674,3138.0,3137.6,1.3741]
[1738147812604,3.1869,3137.9,3137.6,1.3741]
[1738147812903,3.1869,3137.9,3137.4,3.18726]
[1738147812904,3.18684,3137.9,3137.5,0.55]
[1738147813703,3.18674,3138.0,3137.5,1.0499915]
[1738147813909,3.18674,3138.0,3137.5,4.2371515]
[1738147814602,3.18674,3138.0,3137.5,1.0499915]
[1738147814791,3.18658,3138.2,3137.5,4.2371615]
[1738147814996,3.18665,3138.1,3137.7,0.55]
[1738147815196,3.18658,3138.2,3137.9,0.55]
[1738147815575,3.18669,3138.1,3137.9,0.55]
[1738147817308,3.18674,3138.0,3137.9,0.55]
[1738147818629,3.18685,3137.9,3137.6,1.3036]
[1738147819511,3.18674,3138.0,3137.6,1.3036]
[1738147819814,3.18674,3138.0,3137.7,0.56785607]
[1738147821120,3.18671,3138.1,3137.7,0.56785607]
[1738147823821,3.18676,3138.0,3137.7,0.56785607]
[1738147824007,3.18671,3138.1,3137.7,0.56785607]
[1738147824214,6.37342,3138.1,3137.7,0.56785607]
[1738147824522,3.18671,3138.1,3137.7,0.56785607]
[1738147825137,3.18671,3138.1,3137.8,0.55]
[1738147825426,3.18671,3138.1,3138.0,0.55]
[1738147825932,3.18671,3138.1,3138.0,0.61861216]
[1738147829039,3.95286,3138.7,3138.2,0.55]
[1738147829242,3.18588,3138.9,3138.4,0.55]
[1738147829537,3.18588,3138.9,3138.6,0.55]
[1738147829902,3.18588,3138.9,3138.5,0.84079797]
[1738147829903,3.18588,3138.9,3138.8,0.55]
[1738147830326,3.18588,3138.9,3138.8,0.61832837]
[1738147831126,3.18568,3139.1,3138.8,0.61832837]
[1738147831330,3.18573,3139.0,3138.8,0.55]
[1738147831662,3.18573,3139.0,3138.7,0.55]
[1738147831804,3.18573,3139.0,3138.9,0.61799989]
[1738147832008,3.18573,3139.0,3138.9,0.55]
[1738147832359,3.18573,3139.0,3138.9,0.61799989]
[1738147834415,4.35714088,3139.0,3138.9,0.06799989]
[1738147834644,4.35714088,3139.0,3137.5,0.4999915]
[1738147834645,3.18664,3138.1,3137.9,0.7857]
[1738147834830,3.18683,3138.0,3137.6,0.7857]
[1738147835030,3.1869,3137.9,3137.6,0.7857]
[1738147835238,3.1869,3137.9,3137.7,0.55]
[1738147835530,0.7556,3138.4,3137.6,0.7857]
[1738147835711,3.18685,3137.9,3137.6,0.7857]
[1738147835907,3.18685,3137.9,3137.7,0.55]
[1738147836110,3.18685,3137.9,3137.6,0.7857]
[1738147837107,3.18665,3138.1,3137.7,0.55]
[1738147837439,6.37337,3138.1,3137.7,0.55]
[1738147837659,3.18675,3138.0,3137.7,0.55]
[1738147838012,3.18675,3138.0,3137.7,1.002293]
[1738147839422,3.18691,3137.9,3137.7,0.55]
[1738147839725,3.18691,3137.9,3137.6,0.7857]
[1738147839726,3.18721,3137.6,3137.3,0.7909]
[1738147840334,3.18699,3137.8,3137.3,0.7909]
[1738147840569,3.18699,3137.8,3137.4,0.55]
[1738147840860,3.18684,3137.9,3137.6,0.55]
[1738147841038,3.1868,3138.0,3137.6,1.001964]
[1738147842164,3.18665,3138.1,3137.6,4.189034]
[1738147842538,3.18665,3138.1,3137.6,1.001964]
[1738147842753,3.18681,3138.0,3137.6,1.001964]
[1738147843862,6.3732,3138.2,3137.6,4.189064]
[1738147844361,3.18676,3138.0,3137.6,1.001964]
[1738147844531,3.18676,3138.0,3137.6,0.55]
[1738147845451,3.18658,3138.2,3137.8,0.55]
[1738147846067,6.37318,3138.2,3137.8,0.55]
[1738147846211,6.37318,3138.2,3137.6,0.55]
[1738147846212,3.18665,3138.1,3137.6,0.55]
[1738147846612,3.18665,3138.1,3137.6,3.73714]
[1738147846813,5.17822371,3138.7,3138.0,0.55]
[1738147846814,1.36163578,3138.7,3138.0,0.55]
[1738147847045,3.18613,3138.6,3138.0,0.55]
[1738147847227,3.18613,3138.6,3138.2,0.55]
[1738147847534,3.18578,3139.0,3138.5,3.18621]
[1738147847755,3.18578,3139.0,3138.6,1.3191]
[1738147847917,3.18596,3138.8,3138.6,1.3191]
[1738147848117,3.18596,3138.8,3138.4,1.3148]
[1738147848336,3.18578,3139.0,3138.6,0.55]
[1738147848542,3.18583,3138.9,3138.6,0.55]
[1738147848754,3.18583,3138.9,3138.5,0.55]
[1738147849423,3.18583,3138.9,3138.6,0.05460287]
[1738147849873,3.18601,3138.8,3138.6,0.05460287]
[1738147851471,3.18583,3138.9,3138.6,0.05460287]
[1738147851669,3.18602,3138.8,3138.6,0.05460287]
[1738147852165,3.18583,3138.9,3138.6,0.05460287]
[1738147852370,3.18593,3138.8,3138.6,0.05460287]
[1738147853985,3.18603,3138.7,3138.6,0.05460287]
[1738147855385,3.21791011,3138.7,3138.6,0.60376998]
[1738147855591,3.18603,3138.7,3138.6,0.60376998]
[1738147859860,4.64890611,3138.7,3138.6,0.05376998]
[1738147860064,3.18668,3138.1,3137.5,0.8147]
[1738147860266,3.18695,3137.8,3137.5,0.8147]
[1738147860560,3.18695,3137.8,3137.6,0.05407826]
[1738147860765,3.18695,3137.8,3137.7,0.55]
[1738147860973,3.18695,3137.8,3137.7,0.60405505]
[1738147861566,3.18695,3137.8,3137.7,0.05405505]
[1738147861765,0.66925911,3137.8,3137.1,0.8147]
[1738147861960,0.66925911,3137.8,3136.3,0.8325]
[1738147861961,3.18824,3136.6,3136.3,0.8325]
[1738147862267,3.18725,3137.5,3135.8,4.02145]
[1738147862268,0.03188011,3136.7,3135.8,4.02145]
[1738147862503,3.18848,3136.3,3135.8,4.02145]
[1738147863102,3.18821,3136.6,3135.8,4.02145]
[1738147863405,3.18837,3136.4,3135.8,4.02145]
[1738147863584,3.18837,3136.4,3135.9,0.952145]
[1738147863782,6.37646,3136.6,3135.9,4.140975]
[1738147864002,3.18821,3136.6,3135.9,0.402145]
[1738147864389,3.18821,3136.6,3136.0,0.05378438]
[1738147864972,3.18828,3136.5,3136.1,0.55]
[1738147865178,3.18828,3136.5,3136.3,0.55]
[1738147865409,3.18828,3136.5,3136.4,0.60369144]
[1738147870047,3.22016011,3136.5,3136.4,0.60369144]
[1738147870245,3.85780911,3136.5,3136.4,0.05369144]
[1738147870455,1.50152911,3136.5,3135.5,0.758]
[1738147870749,3.18899,3135.8,3135.5,0.758]
[1738147870944,3.18899,3135.8,3135.7,0.55]
[1738147871113,3.18899,3135.8,3135.6,0.05337999]
[1738147871309,3.18899,3135.8,3135.7,0.05335674]
[1738147871743,3.18899,3135.8,3135.5,0.758]
[1738147871744,3.18912,3135.7,3135.6,0.55]
[1738147872833,6.37785,3135.9,3135.6,0.55]
[1738147873404,3.18899,3135.8,3135.6,0.55]
[1738147874145,3.18908,3135.7,3135.3,0.62253458]
[1738147875012,3.18908,3135.7,3135.4,0.55]
[1738147875632,3.1889,3135.9,3135.4,1.36576146]
[1738147875836,3.1889,3135.9,3135.4,4.55510146]
[1738147877317,6.37786,3135.9,3135.4,1.36576146]
[1738147878549,1.36163578,3136.4,3135.2,3.7955]
[1738147878764,6.37853,3135.6,3135.2,0.7955]
[1738147879114,3.18926,3135.6,3135.2,0.7955]
[1738147879320,3.18955,3135.3,3134.9,0.7973]
[1738147879542,3.1894,3135.4,3134.9,0.7973]
[1738147879716,3.1894,3135.4,3135.0,0.55]
[1738147880134,3.1894,3135.4,3134.9,7.923893]
[1738147880662,3.18923,3135.6,3135.0,0.55]
[1738147880867,3.18923,3135.6,3135.0,3.73978]
[1738147881294,6.3785,3135.6,3135.0,3.73978]
[1738147881453,6.37806,3135.8,3135.2,0.55]
[1738147881656,4.55008578,3136.4,3135.2,0.55]
[1738147881657,3.18881,3136.0,3135.4,0.55]
[1738147881962,3.18881,3136.0,3135.6,0.55]
[1738147882466,3.18881,3136.0,3135.5,0.55]
[1738147882631,3.18904,3135.8,3135.5,0.55]
[1738147882832,3.1893,3135.5,3135.0,3.94116]
[1738147883169,3.1893,3135.5,3135.0,5.20171023]
[1738147883536,3.1893,3135.5,3135.1,0.55]
[1738147883864,3.1891,3135.7,3135.1,3.73968]
[1738147883865,6.37824,3135.7,3135.1,3.73968]
[1738147884477,3.1891,3135.7,3135.1,3.73968]
[1738147884635,6.37825,3135.7,3135.1,3.73968]
[1738147884837,6.37825,3135.7,3135.3,0.55]
[1738147885038,3.18918,3135.6,3135.3,0.55]
[1738147890095,3.18938,3135.4,3135.0,0.7514]
[1738147890440,3.18938,3135.4,3135.1,0.55]
[1738147890663,3.18918,3135.6,3135.1,0.55]
[1738147890864,6.37846,3135.6,3135.1,0.55]
[1738147891667,3.18929,3135.5,3135.1,0.55]
[1738147891867,3.18929,3135.5,3135.1,1.618097]
[1738147892069,3.18929,3135.5,3135.1,0.55]
[1738147893385,3.18939,3135.4,3135.1,0.55]
[1738147894548,3.18939,3135.4,3135.3,0.55]
[1738147894904,3.18939,3135.4,3135.3,0.60429473]
[1738147895191,3.98004,3135.7,3135.3,0.60429473]
[1738147895357,3.98004,3135.7,3135.1,0.55]
[1738147895358,3.18928,3135.5,3135.1,0.55]
[1738147895560,3.18928,3135.5,3135.4,0.60427148]
[1738147895777,3.18928,3135.5,3135.4,0.55]
[1738147895978,3.18928,3135.5,3135.4,0.60427148]
[1738147904688,0.7909,3135.7,3135.5,0.55]
[1738147904876,3.18918,3135.6,3135.5,0.55]
[1738147905085,3.18918,3135.6,3135.2,0.55]
[1738147905694,0.7752,3135.9,3135.2,0.999108]
[1738147905867,3.18862,3136.2,3135.5,4.49193]
[1738147906068,3.18862,3136.2,3135.7,0.55]
[1738147906274,3.18877,3136.0,3135.6,0.55]
[1738147907195,6.37761,3136.0,3135.6,0.55]
[1738147907394,0.03188011,3135.9,3135.3,3.99316]
[1738147907604,3.189,3135.8,3135.3,3.99316]
[1738147907811,3.189,3135.8,3135.4,0.55]
[1738147908011,0.03188011,3135.9,3135.4,3.73936]
[1738147908218,3.22083011,3135.9,3135.4,0.55]
[1738147908707,3.18877,3136.0,3135.4,3.73935]
[1738147909219,3.18877,3136.0,3135.6,0.55]
[1738147909420,6.37721,3136.2,3135.7,0.05417446]
[1738147909628,3.18875,3136.1,3135.7,0.05417446]
[1738147910624,3.22063011,3136.1,3135.7,0.05417446]
[1738147911322,0.03188011,3136.1,3135.8,0.55]
[1738147911510,3.18887,3135.9,3135.8,0.60415122]
[1738147911733,3.99505011,3135.9,3135.8,0.60415122]
[1738147914023,3.99505011,3135.9,3135.4,0.55]
[1738147914222,3.99505011,3135.9,3135.5,0.054101]
[1738147915492,3.18877,3136.0,3135.5,3.243371]
[1738147915687,3.18877,3136.0,3135.6,0.55]
[1738147916000,3.18877,3136.0,3135.8,0.55]
[1738147916202,3.18877,3136.0,3135.9,0.05400802]
[1738147918245,3.18877,3136.0,3135.9,0.60400802]
[1738147919212,3.22065011,3136.0,3135.9,0.60400802]
[1738147919542,3.93807212,3136.0,3135.9,0.60400802]
[1738147921671,3.18877,3136.0,3135.9,0.60400802]
[1738147925990,3.22065011,3136.0,3135.9,0.60400802]
[1738147926189,3.22065011,3136.0,3135.9,0.05400802]
[1738147926388,4.02815011,3136.0,3135.9,0.05400802]
[1738147926596,3.99686,3135.5,3135.0,0.7646]
[1738147926895,3.99686,3135.5,3135.1,0.60412036]
[1738147927443,7.1862,3135.5,3135.1,0.60412036]
[1738147927642,3.99684,3135.5,3135.1,0.60412036]
[1738147929048,3.18913,3135.7,3135.1,0.60412036]
[1738147929049,3.18897,3135.8,3135.3,0.55]
[1738147929209,3.1891,3135.7,3135.3,0.55]
[1738147929575,6.37824,3135.7,3135.5,0.55]
[1738147929891,6.37824,3135.7,3135.6,0.60400411]
[1738147930097,1.38770306,3136.0,3135.7,0.55]
[1738147930098,6.37793,3135.9,3135.7,0.55]
[1738147930258,6.37792,3135.9,3135.7,0.55]
[1738147930464,3.18896,3135.9,3135.8,0.6040176]
[1738147931292,3.18872,3136.1,3135.9,0.55]
[1738147931470,3.18877,3136.0,3135.9,0.55]
[1738147931669,3.18877,3136.0,3135.6,0.55]
[1738147932090,3.18877,3136.0,3135.6,1.003077]
[1738147932266,3.18872,3136.1,3135.6,4.192247]
[1738147932466,3.18872,3136.1,3135.6,1.003077]
[1738147932684,3.18898,3135.8,3135.6,0.55]
[1738147935924,3.18908,3135.7,3135.2,0.8117]
[1738147936123,3.18908,3135.7,3135.2,4.00127]
[1738147936928,3.18908,3135.7,3135.2,0.8117]
[1738147937077,3.18908,3135.7,3135.2,4.00127]
[1738147937276,3.18908,3135.7,3135.2,4.8137027]
[1738147937476,3.18908,3135.7,3135.3,0.55]
[1738147937692,6.37822,3135.7,3135.3,0.55]
[1738147937989,3.18918,3135.6,3135.3,0.55]
[1738147939393,4.01222,3135.8,3135.3,0.55]
[1738147939734,4.01222,3135.8,3135.2,4.8137027]
[1738147939735,4.01222,3135.8,3135.5,0.55]
[1738147940118,3.18908,3135.7,3135.6,0.05412953]
[1738147940273,0.8232,3135.8,3135.6,0.05412953]
[1738147940479,4.01218,3135.8,3135.3,3.73944]
[1738147940708,4.01218,3135.8,3135.7,0.05410629]
[1738147940907,4.01218,3135.8,3135.3,3.73944]
[1738147941093,4.04406011,3135.8,3135.7,0.05410629]
[1738147941296,4.04406011,3135.8,3135.3,3.73944]
[1738147941607,4.04406011,3135.8,3135.7,0.05410629]
[1738147941937,3.18908,3135.7,3135.3,3.73947]
[1738147942513,3.18908,3135.7,3135.3,0.55]
[1738147942710,0.85508011,3135.8,3135.3,0.55]
[1738147942885,4.0122,3135.8,3135.3,3.73944]
[1738147943227,4.04408011,3135.8,3135.3,3.73944]
[1738147943524,4.0122,3135.8,3135.3,3.73944]
[1738147943822,0.8232,3135.8,3135.4,3.18938]
[1738147944080,4.00774,3136.0,3135.5,0.55]
[1738147944231,4.63368961,3136.0,3135.5,0.55]
[1738147944727,3.18888,3135.9,3135.5,0.55]
[1738147945118,0.03188011,3135.8,3135.5,0.55]
[1738147946692,3.22086011,3135.8,3135.4,0.55]
[1738147948143,3.22086011,3135.8,3135.4,3.73935]
[1738147948444,3.18888,3135.9,3135.4,4.5908131]
[1738147950420,3.22087011,3135.8,3135.4,4.5908131]
[1738147950634,3.22087011,3135.8,3135.4,3.73935]
[1738147951006,7.82246961,3136.0,3135.4,6.92866]
[1738147951208,3.18889,3135.9,3135.4,3.73931]
[1738147954351,3.18904,3135.8,3135.3,3.73948]
[1738147954549,3.22097011,3135.7,3135.6,0.55]
[1738147954856,3.22097011,3135.7,3135.6,0.05405317]
[1738147955052,3.18909,3135.7,3135.3,3.73947]
[1738147955225,3.18909,3135.7,3135.4,0.05409966]
[1738147955968,3.22086011,3135.8,3135.4,0.05409966]
[1738147957270,3.22086011,3135.8,3135.5,0.55]
[1738147957428,3.18898,3135.8,3135.6,0.05405317]
[1738147960074,3.18898,3135.8,3135.7,0.55]
[1738147960276,3.18898,3135.8,3135.7,0.60409537]
[1738147960675,3.97443097,3135.8,3135.7,0.05409537]
[1738147961078,4.00631108,3135.8,3135.1,0.55]
[1738147961243,3.18923,3135.6,3135.1,0.55]
[1738147961449,0.03188011,3135.5,3135.1,0.55]
[1738147962591,3.18939,3135.4,3135.1,0.55]
[1738147963164,3.18939,3135.4,3135.0,0.7569]
[1738147963350,3.18955,3135.3,3135.0,0.7569]
[1738147964851,3.18955,3135.3,3134.8,3.97558]
[1738147965052,3.18955,3135.3,3134.9,0.55]
[1738147965782,3.22143011,3135.3,3134.9,0.55]
[1738147966281,3.18939,3135.4,3134.9,0.55]
[1738147966430,3.18939,3135.4,3134.9,4.511437]
[1738147967005,3.18922,3135.6,3135.1,0.55]
[1738147967313,6.37849,3135.6,3135.1,0.55]
[1738147967620,3.18904,3135.8,3135.3,3.73942]
[1738147967970,1.36163578,3135.9,3135.5,0.55]
[1738147968322,3.1889,3135.9,3135.5,0.55]
[1738147969497,3.1889,3135.9,3135.7,0.55]
[1738147969872,3.1889,3135.9,3135.8,0.05411575]
[1738147971915,3.22078011,3135.9,3135.8,0.05411575]
[1738147973419,3.1889,3135.9,3135.8,0.05411575]
[1738147973712,3.22078011,3135.9,3135.8,0.05411575]
[1738147974070,3.1889,3135.9,3135.8,0.05411575]
[1738147974470,3.22078011,3135.9,3135.8,0.05411575]
[1738147974672,3.1889,3135.9,3135.8,0.05411575]
[1738147977235,0.8291,3136.1,3135.8,0.60411575]
[1738147977435,3.18867,3136.1,3135.9,0.55]
[1738147977731,3.18867,3136.1,3136.0,0.05402564]
[1738147981239,3.18867,3136.1,3136.0,0.60402564]
[1738147982825,3.22055011,3136.1,3136.0,0.60402564]
[1738147988960,3.18867,3136.1,3136.0,0.60402564]
[1738147989455,3.22055011,3136.1,3136.0,0.60402564]
[1738147991242,3.22055011,3136.1,3136.0,0.05402564]
[1738147991243,3.86146912,3136.1,3136.0,0.05402564]
[1738147991542,1.46029912,3136.1,3135.5,0.55]
[1738147991855,3.18915,3135.7,3135.5,0.55]
[1738147992030,3.18918,3135.6,3135.5,0.55]
[1738147993314,3.18918,3135.6,3135.3,0.55]
[1738147993315,3.18936,3135.5,3135.3,0.55]
[1738147994063,3.22126011,3135.4,3135.2,6.1686]
[1738147994296,3.18948,3135.3,3135.2,5.38]
[1738147996860,3.18964,3135.2,3135.1,0.55]
[1738147997066,3.18948,3135.3,3135.1,0.55]
[1738147997266,3.18934,3135.5,3135.2,0.7642]
[1738147997468,3.18934,3135.5,3135.3,0.55]
[1738147997469,3.22122011,3135.5,3135.3,0.55]
[1738147997779,3.18938,3135.4,3135.1,0.55]
[1738147998076,3.18949,3135.3,3135.1,0.55]
[1738147999379,3.18949,3135.3,3135.1,0.78693659]
[1738147999579,3.18949,3135.3,3135.2,0.60414619]
[1738148000189,3.18938,3135.4,3135.3,0.55]
[1738148000608,3.18938,3135.4,3135.3,0.60412294]
[1738148002101,3.1892,3135.6,3135.3,0.60412294]
[1738148002603,3.18934,3135.5,3135.3,0.60412294]
[1738148003046,3.18904,3135.8,3135.5,0.55]
[1738148003495,3.18904,3135.8,3135.4,0.8025]
[1738148003496,3.18904,3135.8,3135.7,0.55]
[1738148003799,3.22092011,3135.8,3135.7,0.60422627]
[1738148004725,3.94478012,3135.8,3135.7,0.05422627]
[1738148004938,0.75574012,3135.8,3135.1,0.788]
[1738148005101,3.18932,3135.5,3135.2,0.55]
[1738148006507,6.37829,3135.7,3135.2,0.55]
[1738148006708,3.1892,3135.6,3135.2,0.55]
[1738148008247,3.1892,3135.6,3135.2,3.73958]
[1738148008546,3.1893,3135.5,3135.2,0.55]
[1738148008749,3.1893,3135.5,3135.2,1.10828959]
[1738148009322,3.18915,3135.7,3135.2,1.10828959]
[1738148009625,3.18905,3135.8,3135.2,1.10828959]
[1738148009951,3.18923,3135.6,3135.2,1.10828959]
[1738148011711,3.18923,3135.6,3135.4,0.55]
[1738148014559,3.18923,3135.6,3135.5,0.60447996]
[1738148019457,3.18913,3135.7,3135.6,0.55]
[1738148019752,3.18913,3135.7,3135.6,0.60445672]
[1738148022365,3.18889,3135.9,3135.6,0.60445672]
[1738148022540,3.18898,3135.8,3135.6,0.60445672]
[1738148023706,3.18908,3135.7,3135.6,0.60445672]
[1738148026791,3.18889,3135.9,3135.6,0.60445672]
[1738148028486,3.18901,3135.8,3135.6,0.60445672]
[1738148030199,3.18889,3135.9,3135.6,0.60445672]
[1738148030400,6.37784,3135.9,3135.6,0.60445672]
[1738148030562,3.18889,3135.9,3135.6,0.60445672]
[1738148031300,6.37786,3135.9,3135.6,0.60445672]
[1738148033408,3.18905,3135.8,3135.6,0.60445672]
[1738148033561,3.18905,3135.8,3135.7,0.84827819]
[1738148033763,4.00045,3135.8,3135.7,0.3526135]
[1738148034102,4.719384,3135.8,3135.7,0.3526135]
[1738148034272,3.18853,3136.3,3135.8,0.55]
[1738148034601,3.18858,3136.2,3136.0,0.55]
[1738148034958,3.18867,3136.1,3135.8,0.55]
[1738148036005,3.18867,3136.1,3135.7,1.05516591]
[1738148036006,0.8145,3136.1,3135.7,0.55]
[1738148036162,3.18897,3135.8,3135.7,0.55]
[1738148036363,3.18938,3135.4,3135.3,5.38]
[1738148036572,3.18938,3135.4,3135.1,0.8255]
[1738148036772,3.18958,3135.2,3134.7,1.88756591]
[1738148036972,3.18979,3135.0,3134.7,0.8324]
[1738148037189,3.18979,3135.0,3134.4,3.19037]
[1738148037190,3.19006,3134.8,3134.4,0.8324]
[1738148037358,3.19006,3134.8,3134.4,1.34021159]
[1738148038089,3.22174011,3135.0,3134.5,0.55]
[1738148038306,3.18986,3135.0,3134.5,1.05516591]
[1738148038526,3.18986,3135.0,3134.5,4.24546591]
[1738148038690,3.22174011,3135.0,3134.6,0.55]
[1738148038895,3.18986,3135.0,3134.6,0.55]
[1738148039222,3.18986,3135.0,3134.6,1.16356775]
[1738148039877,3.22174011,3135.0,3134.6,1.16356775]
[1738148040322,3.18995,3134.9,3134.6,0.55]
[1738148040492,3.18986,3135.0,3134.6,0.55]
[1738148040678,3.18999,3134.8,3134.5,0.55]
[1738148040879,3.18986,3135.0,3134.5,0.55]
[1738148041080,3.18986,3135.0,3134.5,3.74029]
[1738148041279,3.18986,3135.0,3134.7,0.55]
[1738148041789,0.7559,3135.1,3134.7,0.55]
[1738148042076,3.18925,3135.6,3135.1,0.55]
[1738148042273,3.18929,3135.5,3135.1,0.55]
[1738148042581,3.18929,3135.5,3135.3,0.55]
[1738148042890,3.18917,3135.7,3135.3,0.55]
[1738148043084,3.18919,3135.6,3135.3,0.55]
[1738148044644,0.03188011,3135.5,3135.4,0.60482503]
[1738148045217,3.18919,3135.6,3135.4,0.60482503]
[1738148045418,3.18913,3135.7,3135.4,0.60482503]
[1738148045744,3.96092,3135.8,3135.5,0.55]
[1738148045745,3.18902,3135.8,3135.5,0.55]
[1738148046037,3.18902,3135.8,3135.7,0.55]
[1738148046517,3.18902,3135.8,3135.7,0.60475529]
[1738148048043,3.18887,3135.9,3135.7,0.60475529]
[1738148048637,4.01677,3136.0,3135.7,0.60475529]
[1738148048936,3.18889,3135.9,3135.7,0.60475529]
[1738148053130,3.18897,3135.8,3135.7,0.60475529]
[1738148053330,3.22085011,3135.8,3135.7,0.60475529]
[1738148053532,3.99055011,3135.8,3135.7,0.60475529]
[1738148061422,3.18897,3135.8,3135.7,0.60475529]
[1738148062001,3.22085011,3135.8,3135.7,0.60475529]
[1738148067190,4.61602412,3135.8,3135.7,0.05475529]
[1738148067466,3.18974,3135.1,3134.9,1.05528187]
[1738148067828,3.18974,3135.1,3135.0,0.55]
[1738148068570,3.18986,3135.0,3134.7,6.1519]
[1738148068771,3.18986,3135.0,3134.8,0.55]
[1738148071789,3.22155011,3135.2,3134.8,0.55]
[1738148071950,3.18967,3135.2,3134.8,0.55]
[1738148072544,3.18967,3135.2,3134.8,1.24903069]
[1738148074496,3.18967,3135.2,3135.0,0.55]
[1738148074862,3.84105258,3135.4,3135.1,0.60426759]
[1738148075082,0.65163258,3135.4,3135.2,0.55]
[1738148075382,0.65163258,3135.4,3135.2,0.60424433]
[1738148075998,3.18924,3135.6,3135.2,0.60424433]
[1738148076204,3.18924,3135.6,3135.2,1.30942846]
[1738148077125,3.18903,3135.8,3135.4,0.55]
[1738148077415,3.18909,3135.7,3135.6,0.55]
[1738148077793,3.82312685,3135.7,3135.6,0.60421677]
[1738148078475,3.85500696,3135.7,3135.6,0.60421677]
[1738148078670,3.85500696,3135.7,3135.6,0.05421677]
[1738148078874,3.18941,3135.4,3135.1,0.7521]
[1738148079074,3.18941,3135.4,3135.2,0.55]
[1738148080424,3.18921,3135.6,3135.2,0.92803369]
[1738148080916,6.37846,3135.6,3135.2,0.92803369]
[1738148081116,6.37846,3135.6,3135.2,0.55]
[1738148081117,3.22122011,3135.5,3135.2,0.55]
[1738148082830,0.03188011,3135.5,3135.2,0.55]
[1738148083125,3.1896,3135.2,3134.8,0.7613]
[1738148083292,0.03188011,3135.1,3134.8,0.7613]
[1738148083689,0.03188011,3135.1,3134.9,0.55]
[1738148084521,3.1896,3135.2,3134.9,0.55]
[1738148084719,0.82808011,3135.3,3134.9,0.55]
[1738148084720,0.7962,3135.3,3134.9,0.55]
[1738148084927,3.98569,3135.3,3134.9,0.55]
[1738148085090,4.01757011,3135.3,3134.9,0.55]